bitfinex-derivatives/quotes_BTCF0:USTF0_20250508
["timestamp","ask_amount","ask_price","bid_price","bid_amount"]
[1746671784163,0.0045,98825.0,98822.0,0.39544]
[1746671784368,0.0045,98825.0,98823.0,0.129]
[1746671784568,0.0075,98825.0,98823.0,0.139]
[1746671784768,0.0075,98825.0,98823.0,0.24018799]
[1746671784965,0.0075,98825.0,98823.0,0.11118799]
[1746671785165,0.29091,98824.0,98822.0,0.09344]
[1746671785469,0.29091,98824.0,98822.0,0.05294]
[1746671785669,0.04051,98823.0,98822.0,0.05294]
[1746671786169,0.29831,98823.0,98821.0,0.3608]
[1746671786372,0.2428839,98822.0,98821.0,0.3608]
[1746671786669,0.6909,98881.0,98842.0,0.3608]
[1746671786863,0.1329,98885.0,98855.0,0.3608]
[1746671787065,0.1329,98885.0,98884.0,0.7216]
[1746671787565,0.1329,98885.0,98884.0,0.68112]
[1746671788162,0.1329,98885.0,98884.0,0.84912]
[1746671789162,0.1419,98885.0,98884.0,0.68212]
[1746671789368,0.1509,98885.0,98884.0,0.68312]
[1746671790175,0.2745,98885.0,98884.0,0.68312]
[1746671791472,0.2745,98885.0,98884.0,0.69073943]
[1746671792275,0.2745,98885.0,98884.0,0.85873943]
[1746671794581,0.59286368,98885.0,98884.0,0.85873943]
[1746671795171,0.59286368,98885.0,98884.0,0.69073943]
[1746671795172,0.2745,98885.0,98884.0,0.69073943]
[1746671796074,0.2745,98885.0,98884.0,0.85873943]
[1746671797275,0.2745,98885.0,98884.0,0.69073943]
[1746671798167,0.2745,98885.0,98884.0,0.81825943]
[1746671802277,0.2745,98885.0,98884.0,0.90917943]
[1746671802582,0.0505519,98904.0,98884.0,0.90917943]
[1746671802583,0.0505408,98925.0,98884.0,1.15030743]
[1746671802776,0.1249,98903.0,98900.0,0.13775151]
[1746671802979,0.1269,98902.0,98901.0,0.22028]
[1746671803277,0.0505493,98909.0,98902.0,0.101112]
[1746671803584,0.2022061,98904.0,98903.0,0.09148]
[1746671804174,0.2022061,98904.0,98903.0,0.25948]
[1746671804376,0.050549,98909.0,98903.0,0.360588]
[1746671804576,0.2022061,98904.0,98903.0,0.25948]
[1746671805281,0.2598,98908.0,98903.0,0.21901]
[1746671805483,0.2022036,98906.0,98903.0,0.21901]
[1746671805681,0.012,98909.0,98903.0,0.21901]
[1746671806070,0.003,98904.0,98903.0,0.21901]
[1746671806272,0.003,98904.0,98903.0,0.17854]
[1746671806482,0.003,98904.0,98903.0,0.279648]
[1746671806978,0.003,98904.0,98903.0,0.17854]
[1746671807578,0.2598,98908.0,98903.0,0.17854]
[1746671807779,0.2022061,98904.0,98903.0,0.169]
[1746671808188,0.2022102,98902.0,98901.0,0.68213]
[1746671808680,0.52057388,98902.0,98901.0,0.68213]
[1746671808888,0.64917388,98902.0,98901.0,0.68213]
[1746671809390,0.65117388,98902.0,98901.0,0.68313]
[1746671809581,0.66117388,98902.0,98901.0,0.68413]
[1746671810686,0.45896368,98902.0,98901.0,0.68413]
[1746671810885,0.1406,98902.0,98901.0,0.68413]
[1746671811086,0.0505555,98897.0,98892.0,0.3608]
[1746671811385,0.2022286,98893.0,98892.0,0.32032]
[1746671811788,0.52059228,98893.0,98892.0,0.32032]
[1746671812182,0.52059228,98893.0,98892.0,0.27984]
[1746671812690,0.52659228,98893.0,98892.0,0.27984]
[1746671813085,0.69459228,98893.0,98892.0,0.27984]
[1746671813287,0.202247,98884.0,98880.0,0.3608]
[1746671813592,0.202247,98884.0,98878.0,0.04976237]
[1746671813890,0.52061068,98884.0,98878.0,0.04976237]
[1746671814090,0.68861068,98884.0,98876.0,0.3608]
[1746671814390,0.2022614,98877.0,98876.0,0.32335405]
[1746671815186,0.52062508,98877.0,98876.0,0.28286405]
[1746671815989,0.52362508,98877.0,98876.0,0.28286405]
[1746671816292,0.69362508,98877.0,98876.0,0.28286405]
[1746671816692,0.2022777,98869.0,98868.0,0.3608]
[1746671816892,0.2023002,98858.0,98857.0,0.45224]
[1746671817105,0.2023002,98858.0,98857.0,0.5110043]
[1746671817300,0.2023002,98858.0,98857.0,0.46294905]
[1746671817505,0.2023002,98858.0,98857.0,0.37150905]
[1746671818201,0.2033002,98858.0,98857.0,0.33101905]
[1746671819101,0.001,98858.0,98857.0,0.33101905]
[1746671819406,0.2033002,98858.0,98857.0,0.33101905]
[1746671820109,0.2033002,98858.0,98857.0,0.49901905]
[1746671821301,0.2033002,98858.0,98857.0,0.33101905]
[1746671823006,0.0505798,98849.0,98837.0,0.00773362]
[1746671823208,0.2023432,98837.0,98836.0,0.0509503]
[1746671823402,0.3608,98844.0,98818.0,0.09148]
[1746671823601,0.2023657,98828.0,98825.0,0.05228606]
[1746671823799,0.2023657,98828.0,98825.0,0.00101188]
[1746671824009,0.2023657,98826.0,98825.0,0.05133972]
[1746671824208,0.2023657,98826.0,98818.0,0.09148]
[1746671824209,0.139,98827.0,98818.0,0.05199188]
[1746671824511,0.139,98825.0,98819.0,0.1334]
[1746671824707,0.139,98825.0,98820.0,0.1371]
[1746671825005,0.139,98835.0,98825.0,0.005]
[1746671825201,0.139,98835.0,98831.0,0.3203]
[1746671825396,0.1855797,98849.0,98831.0,0.3203]
[1746671825397,1.0517,98857.0,98832.0,0.1342]
[1746671825609,0.0713245,98848.0,98842.0,0.3608]
[1746671825809,0.0713245,98848.0,98843.0,0.2712]
[1746671826307,0.0713245,98848.0,98843.0,0.26171]
[1746671827109,0.2023289,98844.0,98843.0,0.168]
[1746671827510,0.5631289,98844.0,98843.0,0.168]
[1746671828201,0.2023534,98832.0,98831.0,0.05598]
[1746671828598,0.2023698,98824.0,98818.0,0.14980741]
[1746671828797,0.2023779,98821.0,98818.0,0.14233415]
[1746671828999,0.1273,98833.0,98818.0,0.14233415]
[1746671829210,0.1273,98833.0,98820.0,0.09725151]
[1746671829509,0.1273,98833.0,98821.0,0.1263]
[1746671830012,0.3608,98835.0,98822.0,0.09148]
[1746671830213,0.2023586,98831.0,98822.0,0.09148]
[1746671830397,0.2023517,98833.0,98822.0,0.09148]
[1746671830602,0.3608,98835.0,98822.0,0.09148]
[1746671830806,0.002,98844.0,98831.0,0.3608]
[1746671831108,0.2023419,98838.0,98832.0,0.2779]
[1746671831405,0.0505799,98849.0,98832.0,0.2374]
[1746671831611,0.0505781,98852.0,98832.0,0.2374]
[1746671831804,0.2023514,98833.0,98832.0,0.1391]
[1746671832001,0.2023534,98832.0,98831.0,0.5288]
[1746671832208,0.2023534,98832.0,98831.0,0.3608]
[1746671832806,0.2023534,98832.0,98831.0,0.3618]
[1746671833208,0.2023534,98832.0,98831.0,0.3213]
[1746671833407,0.2023534,98832.0,98831.0,0.3203]
[1746671833600,0.2023534,98832.0,98831.0,0.3213]
[1746671834203,0.2023534,98832.0,98831.0,0.001]
[1746671835309,0.2023637,98827.0,98826.0,0.05162]
[1746671836112,0.3608,98834.0,98826.0,0.05162]
[1746671836413,0.3608,98835.0,98826.0,0.05162]
[1746671836710,0.3608,98835.0,98827.0,0.1272]
[1746671836912,0.2023492,98835.0,98827.0,0.2561]
[1746671837108,0.3608,98846.0,98827.0,0.2561]
[1746671837315,0.2023313,98844.0,98834.0,0.3608]
[1746671837513,0.5631264,98846.0,98834.0,0.3608]
[1746671837708,0.2023279,98845.0,98835.0,0.1359]
[1746671837906,0.2023311,98843.0,98835.0,0.1359]
[1746671838105,0.2023277,98845.0,98835.0,0.1359]
[1746671838307,0.2023277,98845.0,98835.0,0.2634]
[1746671838600,0.3608,98858.0,98835.0,0.2634]
[1746671838814,0.202314,98852.0,98835.0,0.2634]
[1746671839114,0.2023128,98852.0,98835.0,0.2634]
[1746671839611,0.4113769,98855.0,98835.0,0.2634]
[1746671839801,0.3608,98855.0,98835.0,0.2634]
[1746671840004,0.2023153,98851.0,98835.0,0.2634]
[1746671840315,0.1268,98850.0,98835.0,0.2644]
[1746671840510,0.1268,98850.0,98836.0,0.1265]
[1746671841105,0.1268,98850.0,98836.0,0.2945]
[1746671841507,0.001,98856.0,98843.0,0.3608]
[1746671841707,0.0505633,98881.0,98854.0,0.3608]
[1746671841910,0.0505613,98885.0,98864.0,0.3608]
[1746671842108,0.050562,98884.0,98865.0,0.1265]
[1746671842311,0.2022543,98881.0,98865.0,0.08602]
[1746671842614,0.3608,98880.0,98865.0,0.08602]
[1746671842814,0.5,98880.0,98865.0,0.08602]
[1746671843012,0.7022558,98880.0,98865.0,0.08602]
[1746671843208,0.5,98880.0,98865.0,0.21354]
[1746671843712,0.1392,98880.0,98865.0,0.21354]
[1746671843909,0.1322,98879.0,98865.0,0.21354]
[1746671844309,0.1371,98878.0,98865.0,0.21354]
[1746671844710,0.1322,98877.0,98868.0,0.13775151]
[1746671845019,0.1322,98877.0,98868.0,0.0076195]
[1746671845322,0.1371,98876.0,98868.0,0.168]
[1746671845816,0.1322,98875.0,98868.0,0.168]
[1746671846209,0.1371,98874.0,98868.0,0.168]
[1746671846515,0.1371,98874.0,98870.0,0.3608]
[1746671846715,0.1335,98873.0,98871.0,0.1385]
[1746671847109,0.1371,98872.0,98871.0,0.1385]
[1746671847317,0.1371,98872.0,98871.0,0.3065]
[1746671848212,0.3393716,98872.0,98871.0,0.3571]
[1746671848618,0.1401,98872.0,98871.0,0.31765984]
[1746671849222,0.1441,98872.0,98871.0,0.31765984]
[1746671849819,0.1441,98872.0,98871.0,0.21963984]
[1746671852222,0.1441,98872.0,98871.0,0.17915984]
[1746671855327,0.1441,98872.0,98871.0,0.13867984]
[1746671859821,0.3463716,98872.0,98871.0,0.08704]
[1746671860325,0.275,98872.0,98865.0,0.0506]
[1746671860533,0.1296,98871.0,98865.0,0.0506]
[1746671860731,0.1296,98871.0,98867.0,0.3608]
[1746671860919,0.1274,98870.0,98867.0,0.3608]
[1746671861123,0.5630806,98868.0,98867.0,0.168]
[1746671861323,0.5630798,98868.0,98867.0,0.168]
[1746671861531,0.2023038,98857.0,98849.0,0.09088]
[1746671861929,0.3382046,98856.0,98849.0,0.09088]
[1746671862123,0.1309,98855.0,98849.0,0.09088]
[1746671862322,0.1309,98855.0,98849.0,0.05039]
[1746671862530,0.0505777,98853.0,98841.0,0.36231779]
[1746671862727,0.2023309,98843.0,98841.0,0.00151779]
[1746671863127,0.2023597,98829.0,98823.0,0.09088]
[1746671863325,0.3608,98828.0,98823.0,0.05139188]
[1746671863529,0.3608,98828.0,98823.0,0.10322152]
[1746671864227,0.3608,98828.0,98823.0,0.23072152]
[1746671864732,0.1368,98827.0,98823.0,0.23072152]
[1746671864927,0.1368,98827.0,98823.0,0.21982964]
[1746671865329,0.1368,98827.0,98823.0,0.01132964]
[1746671865529,0.1368,98827.0,98823.0,0.003]
[1746671865925,0.1368,98827.0,98825.0,0.003]
[1746671866328,0.1372,98826.0,98823.0,0.003]
[1746671866526,0.1276,98825.0,98823.0,0.003]
[1746671866733,0.1276,98825.0,98823.0,0.007]
[1746671866926,0.1372,98824.0,98823.0,0.007]
[1746671867329,0.1372,98824.0,98823.0,0.004]
[1746671867837,0.0872,98824.0,98823.0,0.05558676]
[1746671868135,0.0872,98824.0,98823.0,0.05958676]
[1746671868435,0.0872,98824.0,98823.0,0.05858676]
[1746671869135,0.0872,98824.0,98823.0,0.05558676]
[1746671869326,0.0872,98824.0,98823.0,0.05858676]
[1746671869733,0.221,98824.0,98823.0,0.05858676]
[1746671870135,0.221,98824.0,98823.0,0.22658676]
[1746671872228,0.221,98824.0,98823.0,0.05858676]
[1746671872427,0.4233698,98824.0,98823.0,0.05858676]
[1746671872922,0.221,98824.0,98823.0,0.05858676]
[1746671873327,0.4233698,98824.0,98823.0,0.007]
[1746671874131,0.2023985,98810.0,98809.0,0.00151802]
[1746671874331,0.2024084,98806.0,98800.0,0.06252612]
[1746671874534,0.1318,98805.0,98800.0,0.06252612]
[1746671874736,0.1318,98805.0,98800.0,0.15340612]
[1746671875232,0.1318,98805.0,98801.0,0.09088]
[1746671875635,0.1338,98805.0,98800.0,0.11289612]
[1746671875836,0.2024169,98801.0,98800.0,0.11289612]
[1746671876135,0.2024169,98801.0,98800.0,0.16451398]
[1746671877138,0.2044169,98801.0,98800.0,0.16451398]
[1746671877934,0.3410169,98801.0,98800.0,0.16451398]
[1746671878136,0.1416,98801.0,98800.0,0.16451398]
[1746671878331,0.1416,98801.0,98800.0,0.12400398]
[1746671878936,0.3470169,98801.0,98800.0,0.12400398]
[1746671879234,0.2024395,98790.0,98789.0,0.32129219]
[1746671879638,0.2024364,98792.0,98789.0,0.32129219]
[1746671879838,0.2694,98791.0,98789.0,0.32129219]
[1746671880240,0.2694,98791.0,98789.0,0.28077219]
[1746671880643,0.003,98790.0,98789.0,0.28077219]
[1746671880836,0.2724,98790.0,98789.0,0.28077219]
[1746671882731,0.003,98791.0,98789.0,0.37169219]
[1746671882936,0.2024118,98804.0,98790.0,0.2738]
[1746671883143,0.3402154,98803.0,98790.0,0.4571666]
[1746671883445,0.3402154,98803.0,98790.0,0.4166466]
[1746671883742,0.3418149,98802.0,98790.0,0.4166466]
[1746671884042,0.1394,98802.0,98790.0,0.3249633]
[1746671884238,0.1378,98801.0,98798.0,0.3608]
[1746671884444,0.1394,98802.0,98799.0,0.2624]
[1746671885048,0.1404,98802.0,98799.0,0.2624]
[1746671885233,0.1404,98802.0,98799.0,0.38989]
[1746671885638,0.1394,98802.0,98799.0,0.38989]
[1746671885940,0.1404,98802.0,98799.0,0.38989]
[1746671886141,0.1424,98802.0,98799.0,0.38989]
[1746671886341,0.0505891,98831.0,98799.0,0.41989]
[1746671886545,0.1407,98814.0,98813.0,0.3608]
[1746671886739,0.3430903,98814.0,98813.0,0.3608]
[1746671886938,0.1407,98814.0,98812.0,0.09092]
[1746671887138,0.3430916,98814.0,98812.0,0.09092]
[1746671887338,0.3430916,98814.0,98812.0,0.05041]
[1746671887640,0.343091,98814.0,98812.0,0.05041]
[1746671888046,0.1407,98814.0,98812.0,0.05041]
[1746671888344,0.1437,98814.0,98812.0,0.0099]
[1746671888547,0.1437,98814.0,98813.0,0.277]
[1746671889741,0.1467,98814.0,98813.0,0.277]
[1746671890137,0.1437,98814.0,98813.0,0.3068]
[1746671890339,0.1437,98814.0,98813.0,0.26629]
[1746671890848,0.006,98814.0,98813.0,0.36749]
[1746671891247,0.006,98814.0,98813.0,0.32698]
[1746671891449,0.0015,98825.0,98813.0,0.46698]
[1746671891747,0.0015,98825.0,98824.0,0.3608]
[1746671891942,0.1332,98825.0,98824.0,0.3608]
[1746671892340,0.1332,98825.0,98824.0,0.4883]
[1746671892946,0.1392,98825.0,98824.0,0.4883]
[1746671893747,0.1442,98825.0,98824.0,0.168]
[1746671896342,0.1442,98825.0,98824.0,0.1275]
[1746671900247,0.1442,98825.0,98819.0,0.3608]
[1746671900748,0.1442,98825.0,98820.0,0.1357]
[1746671901049,0.1442,98825.0,98820.0,0.2645]
[1746671901252,0.1442,98825.0,98820.0,0.4325]
[1746671901452,0.1422,98825.0,98820.0,0.4325]
[1746671901648,0.1362,98825.0,98820.0,0.4325]
[1746671902053,0.1402,98825.0,98820.0,0.4325]
[1746671902652,0.1362,98825.0,98820.0,0.4325]
[1746671902855,0.1402,98825.0,98820.0,0.4325]
[1746671903057,0.1412,98825.0,98820.0,0.4325]
[1746671904257,0.202376,98821.0,98820.0,0.168]
[1746671905154,0.202378,98820.0,98819.0,0.3608]
[1746671905356,0.344178,98820.0,98819.0,0.32029]
[1746671906253,0.202396,98812.0,98801.0,0.3608]
[1746671906553,0.2023999,98810.0,98804.0,0.1]
[1746671906759,0.1418,98809.0,98804.0,0.1]
[1746671907353,0.1418,98809.0,98801.0,0.1393]
[1746671907660,0.1418,98809.0,98804.0,0.1]
[1746671909255,0.1428,98809.0,98804.0,0.1]
[1746671909457,0.2024183,98801.0,98790.0,0.4498]
[1746671909656,0.3397197,98800.0,98791.0,0.1393]
[1746671909864,0.1373,98800.0,98791.0,0.1393]
[1746671910059,0.3360219,98799.0,98791.0,0.1393]
[1746671910262,0.3360219,98799.0,98790.0,0.3608]
[1746671910263,0.0506057,98798.0,98790.0,0.3608]
[1746671910563,0.5632376,98791.0,98788.0,0.089]
[1746671910767,0.2024415,98789.0,98788.0,0.089]
[1746671911267,0.4773415,98789.0,98788.0,0.04848]
[1746671911857,0.4783415,98789.0,98788.0,0.04848]
[1746671912260,0.2759,98789.0,98788.0,0.04848]
[1746671912656,0.2759,98789.0,98788.0,0.18238]
[1746671912867,0.2759,98789.0,98788.0,0.04848]
[1746671913061,0.2759,98789.0,98787.0,0.3608]
[1746671913257,0.2759,98789.0,98787.0,0.32029]
[1746671913654,0.2759,98789.0,98781.0,0.0572577]
[1746671913861,0.202446,98787.0,98781.0,0.01]
[1746671914165,0.2754,98786.0,98781.0,0.01]
[1746671914865,0.2024579,98781.0,98780.0,0.00151832]
[1746671915058,0.2024887,98766.0,98747.0,0.1324]
[1746671915260,0.0506314,98748.0,98740.0,0.0916833]
[1746671915457,0.139,98747.0,98740.0,0.1016833]
[1746671915661,0.1364,98746.0,98741.0,0.089]
[1746671916164,0.139,98745.0,98744.0,0.3608]
[1746671916358,0.139,98745.0,98742.0,0.1427]
[1746671916555,0.1291,98744.0,98742.0,0.1427]
[1746671916760,0.1291,98744.0,98742.0,0.19429275]
[1746671916960,0.1333,98743.0,98742.0,0.19429275]
[1746671917160,0.3358358,98743.0,98742.0,0.05159275]
[1746671917367,0.3358358,98743.0,98742.0,0.01106275]
[1746671917568,0.2025399,98741.0,98740.0,0.006]
[1746671917769,0.5633399,98741.0,98740.0,0.006]
[1746671918064,0.1291,98742.0,98737.0,0.02768558]
[1746671918274,0.1291,98742.0,98738.0,0.22947]
[1746671918657,0.002,98741.0,98738.0,0.22947]
[1746671919065,0.2624,98740.0,98738.0,0.39747]
[1746671919368,0.2624,98740.0,98739.0,0.08904]
[1746671920962,0.464942,98740.0,98739.0,0.08904]
[1746671921162,0.2624,98740.0,98739.0,0.08904]
[1746671921361,0.825742,98740.0,98739.0,0.0485]
[1746671921566,0.826742,98740.0,98739.0,0.0485]
[1746671922169,0.994742,98740.0,98739.0,0.0485]
[1746671922365,0.7922,98740.0,98735.0,0.00101281]
[1746671922570,0.2025502,98736.0,98735.0,0.00101281]
[1746671923069,0.8438358,98740.0,98735.0,0.05129328]
[1746671923070,0.4324,98740.0,98735.0,0.05129328]
[1746671923364,0.2644,98740.0,98735.0,0.00101281]
[1746671923569,0.2674,98740.0,98735.0,0.05052331]
[1746671923772,0.4699436,98740.0,98735.0,0.05052331]
[1746671924164,0.2684,98740.0,98735.0,0.05052331]
[1746671924368,0.2025502,98736.0,98735.0,0.05052331]
[1746671924565,0.3608,98739.0,98735.0,0.05052331]
[1746671924772,0.2793,98737.0,98735.0,0.05052331]
[1746671925166,0.2793,98737.0,98735.0,0.17898331]
[1746671925364,0.2793,98737.0,98736.0,0.1347]
[1746671925964,0.2793,98737.0,98735.0,0.22042021]
[1746671926169,0.2803,98737.0,98735.0,0.17888021]
[1746671927274,0.2813,98737.0,98735.0,0.17888021]
[1746671927964,0.2803,98737.0,98735.0,0.17888021]
[1746671928169,0.2813,98737.0,98735.0,0.05142021]
[1746671928363,0.2813,98737.0,98730.0,0.1294]
[1746671928766,0.2813,98737.0,98730.0,0.17918895]
[1746671928969,0.4838485,98737.0,98730.0,0.17918895]
[1746671929371,0.2813,98737.0,98730.0,0.17918895]
[1746671929572,0.2803,98737.0,98730.0,0.17918895]
[1746671929771,0.4828486,98737.0,98730.0,0.17918895]
[1746671930174,0.4818486,98737.0,98730.0,0.17918895]
[1746671930375,0.4828486,98737.0,98730.0,0.17918895]
[1746671930566,0.2803,98737.0,98730.0,0.17918895]
[1746671931071,0.2025605,98731.0,98730.0,0.04978895]
[1746671931267,0.4114405,98731.0,98716.0,0.1]
[1746671931470,0.4114405,98731.0,98710.0,0.0916833]
[1746671931471,0.2025795,98722.0,98720.0,0.0916833]
[1746671931671,0.2787,98721.0,98720.0,0.04978895]
[1746671931876,0.481281,98721.0,98716.0,0.1]
[1746671932073,0.2025875,98718.0,98716.0,0.1]
[1746671932278,0.2787,98717.0,98716.0,0.1]
[1746671932773,0.2787,98717.0,98716.0,0.15167819]
[1746671933777,0.2797,98717.0,98716.0,0.15167819]
[1746671933972,0.003,98717.0,98716.0,0.27167819]
[1746671934178,0.003,98717.0,98716.0,0.43967819]
[1746671935172,0.3608,98738.0,98716.0,0.43967819]
[1746671935173,0.0506342,98743.0,98716.0,0.54097818]
[1746671935381,0.1354,98734.0,98733.0,0.0916833]
[1746671935575,0.1354,98734.0,98732.0,0.3608]
[1746671935776,0.1338,98733.0,98732.0,0.3608]
[1746671936179,0.1338,98733.0,98732.0,0.5288]
[1746671936378,0.1338,98733.0,98732.0,0.168]
[1746671936577,0.1338,98733.0,98732.0,0.5288]
[1746671937270,0.1348,98733.0,98732.0,0.48826]
[1746671937983,0.1348,98733.0,98732.0,0.12746]
[1746671938783,0.1338,98733.0,98732.0,0.12846]
[1746671939483,0.1338,98733.0,98732.0,0.12746]
[1746671939682,0.1338,98733.0,98732.0,0.12846]
[1746671940281,0.1338,98733.0,98732.0,0.12746]
[1746671941186,0.1338,98733.0,98728.0,0.08908]
[1746671941386,0.1338,98733.0,98729.0,0.1353]
[1746671941387,0.1379,98732.0,98729.0,0.1353]
[1746671941884,0.1388,98731.0,98729.0,0.1353]
[1746671942085,0.1388,98731.0,98729.0,0.3033]
[1746671942281,0.1379,98730.0,98729.0,0.3033]
[1746671942781,0.1379,98730.0,98729.0,0.3043]
[1746671943385,0.1379,98730.0,98729.0,0.3033]
[1746671943573,0.1379,98730.0,98729.0,0.3043]
[1746671944475,0.1379,98730.0,98729.0,0.169]
[1746671944878,0.1379,98730.0,98729.0,0.168]
[1746671945078,0.1379,98730.0,98729.0,0.169]
[1746671945887,0.1379,98730.0,98729.0,0.168]
[1746671947288,0.1379,98730.0,98729.0,0.3092]
[1746671948188,0.1379,98730.0,98729.0,0.26866]
[1746671949187,0.1379,98730.0,98729.0,0.26966]
[1746671949489,0.1379,98730.0,98729.0,0.12846]
[1746671949988,0.3404625,98730.0,98729.0,0.12846]
[1746671950189,0.3404625,98730.0,98728.0,0.04954]
[1746671950382,0.3480646,98729.0,98728.0,0.04954]
[1746671950584,0.2025827,98721.0,98714.0,0.44988]
[1746671950778,0.0506462,98719.0,98716.0,0.1]
[1746671950984,0.2025892,98717.0,98716.0,0.1]
[1746671951284,0.2025892,98717.0,98716.0,0.0502017]
[1746671951485,0.3480892,98717.0,98716.0,0.1]
[1746671951987,0.4893892,98717.0,98716.0,0.1505411]
[1746671952181,0.6573892,98717.0,98716.0,0.0099911]
[1746671952382,0.6573892,98717.0,98708.0,0.089]
[1746671952578,0.3392918,98716.0,98708.0,0.099]
[1746671952981,0.1445,98715.0,98708.0,0.10646925]
[1746671953286,0.1445,98715.0,98708.0,0.15699894]
[1746671953485,0.1397,98714.0,98708.0,0.14699894]
[1746671953685,0.1397,98714.0,98708.0,0.52699894]
[1746671953985,0.1445,98713.0,98708.0,0.52699894]
[1746671954182,0.1445,98713.0,98708.0,0.42499894]
[1746671954379,0.1397,98712.0,98709.0,0.1336]
[1746671954583,0.1397,98712.0,98709.0,0.1436]
[1746671954780,0.1445,98711.0,98709.0,0.1436]
[1746671955182,0.1397,98710.0,98709.0,0.1436]
[1746671956008,0.0506396,98732.0,98709.0,0.4036]
[1746671956195,0.1383,98720.0,98714.0,0.3608]
[1746671956399,0.1417,98719.0,98715.0,0.1399]
[1746671956803,0.1383,98718.0,98715.0,0.1399]
[1746671957307,0.1417,98717.0,98715.0,0.1399]
[1746671957700,0.1383,98716.0,98715.0,0.1399]
[1746671958202,0.1383,98716.0,98715.0,0.168]
[1746671959107,0.1383,98716.0,98714.0,0.3608]
[1746671959308,0.147,98715.0,98714.0,0.3608]
[1746671960406,0.148,98715.0,98714.0,0.3608]
[1746671960800,0.147,98715.0,98714.0,0.3608]
[1746671961407,0.2875,98715.0,98714.0,0.3608]
[1746671962404,0.2885,98715.0,98714.0,0.3608]
[1746671963014,0.2026015,98711.0,98710.0,0.089]
[1746671963311,0.2025979,98713.0,98710.0,0.04845]
[1746671963508,0.4841003,98712.0,98710.0,0.04845]
[1746671964413,0.2815,98712.0,98710.0,0.04845]
[1746671964614,0.001,98711.0,98710.0,0.04845]
[1746671964814,0.2825,98711.0,98710.0,0.04845]
[1746671965412,0.2815,98711.0,98710.0,0.04845]
[1746671965812,0.2815,98711.0,98708.0,0.05799894]
[1746671966013,0.2815,98711.0,98705.0,0.36181311]
[1746671966201,0.4114508,98710.0,98705.0,0.05945204]
[1746671966406,0.5634043,98710.0,98705.0,0.05945204]
[1746671966610,0.2845,98709.0,98705.0,0.05945204]
[1746671971317,0.2845,98709.0,98705.0,0.05181239]
[1746671971515,0.4871061,98709.0,98705.0,0.05181239]
[1746671972221,0.4525,98709.0,98705.0,0.05181239]
[1746671973117,0.2845,98709.0,98705.0,0.05181239]
[1746671973921,0.2845,98709.0,98705.0,0.05946937]
[1746671974122,0.4881065,98709.0,98705.0,0.05946937]
[1746671974319,0.4881065,98709.0,98702.0,0.36231972]
[1746671974524,0.2855,98709.0,98702.0,0.36231972]
[1746671975025,0.4871063,98709.0,98705.0,0.002]
[1746671975215,0.4871063,98709.0,98705.0,0.05323063]
[1746671975523,0.4871063,98709.0,98705.0,0.002]
[1746671976209,0.2845,98709.0,98705.0,0.002]
[1746671976523,0.2845,98709.0,98705.0,0.001]
[1746671976724,0.4871062,98709.0,98705.0,0.05194686]
[1746671976919,0.2845,98709.0,98705.0,0.05194686]
[1746671977223,0.4871067,98709.0,98705.0,0.05094686]
[1746671977418,0.2026118,98706.0,98702.0,0.36231972]
[1746671977609,0.2792,98705.0,98702.0,0.36231972]
[1746671977809,0.2792,98705.0,98702.0,0.41309429]
[1746671979215,0.4818145,98705.0,98702.0,0.41309429]
[1746671979414,0.2026179,98703.0,98702.0,0.05229429]
[1746671979620,0.2026179,98703.0,98702.0,0.00151972]
[1746671980118,0.0506575,98698.0,98676.0,0.2815]
[1746671980422,0.712116,98703.0,98670.0,0.4524833]
[1746671980423,0.202657,98684.0,98674.0,0.089]
[1746671980624,0.2829,98683.0,98674.0,0.089]
[1746671980816,0.6311592,98683.0,98674.0,0.089]
[1746671981012,0.3608,98679.0,98673.0,0.089]
[1746671981219,0.2888,98678.0,98675.0,0.01185127]
[1746671981418,0.2888,98678.0,98673.0,0.089]
[1746671981621,0.2888,98678.0,98673.0,0.09652725]
[1746671981812,0.1452,98702.0,98674.0,0.284]
[1746671982016,0.2888,98693.0,98684.0,0.0916833]
[1746671982220,0.2888,98693.0,98685.0,0.24344]
[1746671982425,0.2888,98693.0,98685.0,0.21454]
[1746671983018,0.2888,98693.0,98685.0,0.12]
[1746671983323,0.2888,98693.0,98685.0,0.123]
[1746671983717,0.2888,98693.0,98686.0,0.1426]
[1746671984123,0.2888,98693.0,98686.0,0.3106]
[1746671985424,0.2888,98693.0,98686.0,0.168]
[1746671985620,0.2888,98693.0,98686.0,0.171]
[1746671985817,0.2888,98693.0,98686.0,0.174]
[1746671986017,0.2888,98693.0,98687.0,0.1372]
[1746671986225,0.2888,98693.0,98687.0,0.3052]
[1746671987322,0.2888,98693.0,98687.0,0.168]
[1746671987524,0.2888,98693.0,98687.0,0.174]
[1746671987725,0.2888,98693.0,98688.0,0.1486]
[1746671988126,0.2888,98693.0,98688.0,0.3166]
[1746671988722,0.2888,98693.0,98688.0,0.168]
[1746671988926,0.2888,98693.0,98688.0,0.17]
[1746671989125,0.2888,98693.0,98688.0,0.172]
[1746671989431,0.2888,98693.0,98689.0,0.1486]
[1746671989726,0.2888,98693.0,98691.0,0.3608]
[1746671990027,0.3608,98710.0,98692.0,0.1396]
[1746671990328,0.1421,98701.0,98696.0,0.0511333]
[1746671990531,0.1419,98700.0,98697.0,0.4298]
[1746671990720,0.1421,98701.0,98697.0,0.4298]
[1746671990917,0.1421,98701.0,98697.0,0.4898]
[1746671991118,0.1421,98701.0,98697.0,0.6578]
[1746671991325,0.0506382,98735.0,98700.0,0.3608]
[1746671991519,0.1421,98714.0,98713.0,0.0916833]
[1746671991727,0.1421,98714.0,98713.0,0.74964]
[1746671991933,0.1421,98714.0,98713.0,0.50964]
[1746671992323,0.1419,98723.0,98713.0,0.8871]
[1746671992525,0.1376,98722.0,98714.0,0.2855]